lending/lending_fUSD_20240111
["ID","MTS","AMOUNT","RATE_DAILY","PERIOD"]
[311150424,1704934233952,-500.0,0.00038906,4]
[311150425,1704934233964,-500.0,0.00038906,4]
[311150426,1704934233975,-500.0,0.00038906,4]
[311150427,1704934233986,-639.634,0.00038906,4]
[311150428,1704934233998,-500.0,0.00038906,4]
[311150429,1704934234011,-500.0,0.00038906,4]
[311150430,1704934234021,-500.0,0.00038906,4]
[311150431,1704934234031,-500.0,0.00038906,4]
[311150432,1704934234042,-500.0,0.00038906,4]
[311150433,1704934234052,-500.0,0.00038906,4]
[311150434,1704934234062,-5274.35,0.00038906,4]
[311150435,1704934234072,-500.0,0.00038906,4]
[311150436,1704934234082,-500.0,0.00038906,4]
[311150437,1704934234092,-500.0,0.00038906,4]
[311150438,1704934234103,-500.0,0.00038906,4]
[311150439,1704934234115,-500.0,0.00038906,4]
[311150440,1704934234126,-371.19415216,0.00038907,4]
[311150441,1704934234137,-174.83,0.00038907,4]
[311150442,1704934234147,-528.33,0.00038907,4]
[311150443,1704934234158,-500.0,0.00038907,4]
[311150444,1704934234169,-500.0,0.00038907,4]
[311150445,1704934234182,-645.66,0.00038907,4]
[311150446,1704934234193,-1000.0,0.00038907,2]
[311150447,1704934234205,-546.98,0.00038907,4]
[311150448,1704934234215,-397.18706174,0.00038907,4]
[311150449,1704934234225,-500.0,0.00038907,4]
[311150450,1704934234235,-624.12,0.00038907,4]
[311150451,1704934234245,-500.0,0.00038907,4]
[311150452,1704934234255,-500.0,0.00038907,4]
[311150453,1704934234266,-500.0,0.00038907,4]
[311150454,1704934234277,-500.0,0.00038907,4]
[311150455,1704934234288,-500.0,0.00038907,4]
[311150456,1704934234298,-500.0,0.00038907,4]
[311150457,1704934234309,-500.0,0.00038907,4]
[311150458,1704934234319,-500.0,0.00038907,4]
[311150459,1704934234329,-500.0,0.00038907,4]
[311150460,1704934234339,-500.0,0.00038907,4]
[311150461,1704934234349,-500.0,0.00038907,4]
[311150462,1704934234360,-500.0,0.00038907,4]
[311150463,1704934234370,-500.0,0.00038907,4]
[311150464,1704934234380,-500.0,0.00038907,4]
[311150465,1704934234390,-500.0,0.00038907,4]
[311150466,1704934234399,-273.51,0.00038907,4]
[311150467,1704934234410,-315.597648,0.00038907,4]
[311150468,1704934234421,-500.0,0.00038907,4]
[311150469,1704934234433,-500.0,0.00038907,4]
[311150470,1704934234444,-241.62876624,0.00038907,4]
[311150471,1704934234454,-649.42574087,0.00038907,4]
[311150472,1704934234465,-500.0,0.00038907,4]
[311150473,1704934234476,-500.0,0.00038907,4]
[311150474,1704934234487,-500.0,0.00038907,4]
[311150475,1704934234499,-469.68,0.00038907,4]
[311150476,1704934234511,-500.0,0.00038907,4]
[311150477,1704934234521,-500.0,0.00038907,4]
[311150478,1704934234531,-500.0,0.00038907,4]
[311150479,1704934234545,-582.9,0.00038907,4]
[311150480,1704934234556,-500.0,0.00038907,4]
[311150481,1704934234566,-500.0,0.00038907,4]
[311150482,1704934234578,-500.0,0.00038907,4]
[311150483,1704934234589,-594.5507144,0.00038907,4]
[311150484,1704934234601,-500.0,0.00038907,4]
[311150485,1704934234613,-500.0,0.00038907,4]
[311150486,1704934234624,-500.0,0.00038907,4]
[311150487,1704934234636,-500.0,0.00038907,4]
[311150488,1704934234646,-500.0,0.00038907,4]
[311150489,1704934234657,-500.0,0.00038907,4]
[311150490,1704934234668,-500.0,0.00038907,4]
[311150491,1704934234678,-500.0,0.00038907,4]
[311150492,1704934234689,-500.0,0.00038907,4]
[311150493,1704934234699,-500.0,0.00038907,4]
[311150494,1704934234710,-500.0,0.00038907,4]
[311150495,1704934234721,-500.0,0.00038907,4]
[311150496,1704934234732,-500.0,0.00038907,4]
[311150497,1704934234743,-500.0,0.00038907,4]
[311150498,1704934234754,-500.0,0.00038907,4]
[311150499,1704934234765,-520.87976133,0.00038907,4]
[311150500,1704934234776,-500.0,0.00038907,4]
[311150501,1704934234788,-500.0,0.00038907,4]
[311150502,1704934234798,-500.0,0.00038907,4]
[311150503,1704934234809,-309.16312285,0.00038907,4]
[311150504,1704934234819,-500.0,0.00038907,4]
[311150505,1704934234830,-500.0,0.00038907,4]
[311150506,1704934234840,-500.0,0.00038907,4]
[311150507,1704934234851,-500.0,0.00038907,4]
[311150508,1704934234862,-500.0,0.00038907,4]
[311150509,1704934234872,-529.64,0.00038907,4]
[311150510,1704934234882,-500.0,0.00038907,4]
[311150511,1704934234893,-500.0,0.00038907,4]
[311150512,1704934234904,-500.0,0.00038907,4]
[311150513,1704934234914,-588.0,0.00038907,4]
[311150514,1704934234924,-500.0,0.00038907,4]
[311150515,1704934234934,-500.0,0.00038907,4]
[311150516,1704934234945,-500.0,0.00038907,4]
[311150517,1704934234956,-500.0,0.00038907,4]
[311150518,1704934234968,-500.0,0.00038907,4]
[311150519,1704934235179,-500.0,0.00038907,4]
[311150520,1704934235189,-500.0,0.00038907,4]
[311150521,1704934235198,-281.65321815,0.0003898,2]
[311150522,1704934235207,-34750.4592765,0.0003899,10]
[311150523,1704934235217,-150.18,0.0003899,2]
[311150524,1704934235226,-300.0,0.00038999,2]
[311150525,1704934235236,-1000.0,0.00038999,2]
[311150526,1704934235246,-1427.01104071,0.00039,2]
[311150527,1704934235255,-707.07560142,0.00039,2]
[311150528,1704934235265,-234645.24318477,0.00039,2]
[311150529,1704934235274,-500.0,0.00039,30]
[311150530,1704934235283,-500.0,0.00039,30]
[311150531,1704934235294,-500.0,0.00039,30]
[311150532,1704934235303,-500.0,0.00039,30]
[311150533,1704934235313,-500.0,0.00039,30]
[311150534,1704934235322,-500.0,0.00039178,4]
[311150535,1704934235332,-500.0,0.0003918,4]
[311150536,1704934235341,-500.0,0.0003918,4]
[311150537,1704934235350,-500.0,0.0003918,4]
[311150538,1704934235360,-500.0,0.0003918,4]
[311150539,1704934235369,-500.0,0.0003918,4]
[311150540,1704934235379,-500.0,0.0003918,4]
[311150541,1704934235388,-500.0,0.0003918,4]
[311150542,1704934235398,-500.0,0.0003918,4]
[311150543,1704934235407,-500.0,0.0003918,4]
[311150544,1704934235416,-500.0,0.0003918,4]
[311150545,1704934235426,-500.0,0.0003918,4]
[311150546,1704934235435,-500.0,0.0003918,4]
[311150547,1704934235445,-500.0,0.0003918,4]
[311150548,1704934235454,-500.0,0.0003918,4]
[311150549,1704934235464,-500.0,0.0003918,4]
[311150550,1704934235473,-5274.35,0.0003918,4]
[311150551,1704934235483,-500.0,0.0003918,4]
[311150552,1704934235492,-500.0,0.0003918,4]
[311150553,1704934235501,-388.7,0.0003918,4]
[311150554,1704934235510,-500.0,0.0003918,4]
[311150555,1704934235519,-394.85,0.00039181,4]
[311150556,1704934235528,-500.0,0.00039181,4]
[311150557,1704934235538,-500.0,0.00039181,4]
[311150558,1704934235547,-500.0,0.00039181,4]
[311150559,1704934235556,-500.0,0.00039181,4]
[311150560,1704934235565,-500.0,0.00039181,4]
[311150561,1704934235575,-500.0,0.00039181,4]
[311150562,1704934235584,-500.0,0.00039181,4]
[311150563,1704934235594,-500.0,0.00039181,4]
[311150564,1704934235604,-500.0,0.00039181,4]
[311150565,1704934235614,-500.0,0.00039181,4]
[311150566,1704934235624,-500.0,0.00039181,4]
[311150567,1704934235633,-500.0,0.00039181,4]
[311150568,1704934235642,-500.0,0.00039181,4]
[311150569,1704934235652,-500.0,0.00039181,4]
[311150570,1704934235661,-585.14,0.00039181,4]
[311150571,1704934235671,-500.0,0.00039181,4]
[311150572,1704934235680,-576.29,0.00039181,4]
[311150573,1704934235690,-566.92,0.00039181,4]
[311150574,1704934235699,-500.0,0.00039181,4]
[311150575,1704934235708,-500.0,0.00039181,4]
[311150576,1704934235717,-500.0,0.00039181,4]
[311150577,1704934235727,-635.70786699,0.00039181,4]
[311150578,1704934235736,-500.0,0.00039181,4]
[311150579,1704934235746,-500.0,0.00039181,4]
[311150580,1704934235756,-500.0,0.00039181,4]
[311150581,1704934235765,-348.76,0.00039181,4]
[311150582,1704934235775,-306.46,0.00039181,4]
[311150583,1704934235784,-325.16,0.00039181,4]
[311150584,1704934235795,-500.0,0.00039181,4]
[311150585,1704934235804,-340.78,0.00039181,4]
[311150586,1704934235813,-500.0,0.00039181,4]
[311150587,1704934235823,-500.0,0.00039181,4]
[311150588,1704934235832,-500.0,0.00039181,4]
[311150589,1704934235841,-464.62,0.00039181,4]
[311150590,1704934235850,-558.82,0.00039181,4]
[311150591,1704934235860,-500.0,0.00039181,4]
[311150592,1704934235869,-500.0,0.00039181,4]
[311150593,1704934235878,-500.0,0.00039181,4]
[311150594,1704934235888,-500.0,0.00039181,4]
[311150595,1704934235897,-418.32,0.00039181,4]
[311150596,1704934235907,-500.0,0.00039181,4]
[311150597,1704934235916,-588.0,0.00039181,4]
[311150598,1704934235925,-500.0,0.00039181,4]
[311150599,1704934235937,-177.28,0.00039181,4]
[311150600,1704934235947,-500.0,0.00039181,4]
[311150601,1704934235956,-500.0,0.00039181,4]
[311150602,1704934235965,-500.0,0.00039181,4]
[311150603,1704934235976,-1000.0,0.0003926,2]
[311150604,1704934235986,-150.0,0.00039368,2]
[311150605,1704934235995,-150.0,0.00039379,2]
[311150606,1704934236004,-1000.0,0.000394,2]
[311150607,1704934236016,-155.38981305,0.00039435,2]
[311150608,1704934236026,-100799.695029,0.00039445,4]
[311150609,1704934236039,-500.0,0.00039452,4]
[311150610,1704934236049,-500.0,0.00039454,4]
[311150611,1704934236059,-500.0,0.00039454,4]
[311150612,1704934236069,-500.0,0.00039454,4]
[311150613,1704934236078,-315.63916653,0.00039454,4]
[311150614,1704934236087,-500.0,0.00039454,4]
[311150615,1704934236096,-442.47094264,0.00039454,4]
[311150616,1704934236107,-500.0,0.00039454,4]
[311150617,1704934236116,-500.0,0.00039454,4]
[311150618,1704934236125,-500.0,0.00039454,4]
[311150619,1704934236134,-500.0,0.00039454,4]
[311150620,1704934236144,-500.0,0.00039454,4]
[311150621,1704934236153,-500.0,0.00039454,4]
[311150622,1704934236163,-246.80505177,0.00039454,4]
[311150623,1704934236173,-500.0,0.00039454,4]
[311150624,1704934236183,-500.0,0.00039454,4]
[311150625,1704934236193,-5274.35,0.00039454,4]
[311150626,1704934236203,-500.0,0.00039454,4]
[311150627,1704934236213,-500.0,0.00039454,4]
[311150628,1704934236223,-500.0,0.00039454,4]
[311150629,1704934236232,-276.96,0.00039455,4]
[311150630,1704934236242,-500.0,0.00039455,4]
[311150631,1704934236251,-500.0,0.00039455,4]
[311150632,1704934236261,-500.0,0.00039455,4]
[311150633,1704934236270,-500.0,0.00039455,4]
[311150634,1704934236280,-500.0,0.00039455,4]
[311150635,1704934236291,-500.0,0.00039455,4]
[311150636,1704934236301,-500.0,0.00039455,4]
[311150637,1704934236310,-500.0,0.00039455,4]
[311150638,1704934236319,-500.0,0.00039455,4]
[311150639,1704934236329,-500.0,0.00039455,4]
[311150640,1704934236338,-500.0,0.00039455,4]
[311150641,1704934236348,-500.0,0.00039455,4]
[311150642,1704934236357,-500.0,0.00039455,4]
[311150643,1704934236367,-500.0,0.00039455,4]
[311150644,1704934236376,-500.0,0.00039455,4]
[311150645,1704934236386,-500.0,0.00039455,4]
[311150646,1704934236395,-500.0,0.00039455,4]
[311150647,1704934236404,-500.0,0.00039455,4]
[311150648,1704934236414,-442.56,0.00039455,4]
[311150649,1704934236423,-500.0,0.00039455,4]
[311150650,1704934236433,-500.0,0.00039455,4]
[311150651,1704934236442,-500.0,0.00039455,4]
[311150652,1704934236452,-500.0,0.00039455,4]
[311150653,1704934236461,-500.0,0.00039455,4]
[311150654,1704934236470,-279.36,0.00039455,4]
[311150655,1704934236480,-500.0,0.00039455,4]
[311150656,1704934236489,-500.0,0.00039455,4]
[311150657,1704934236498,-500.0,0.00039455,4]
[311150658,1704934236507,-588.0,0.00039455,4]
[311150659,1704934236516,-500.0,0.00039455,4]
[311150660,1704934236526,-337.36,0.00039455,4]
[311150661,1704934236535,-500.0,0.00039455,4]
[311150662,1704934236546,-500.0,0.00039455,4]
[311150663,1704934236555,-3202.84940144,0.000395,2]
[311150664,1704934236565,-154.65,0.000395,3]
[311150665,1704934236575,-154.65,0.000395,3]
[311150666,1704934236585,-154.65,0.000395,3]
[311150667,1704934236594,-154.65,0.000395,3]
[311150668,1704934236604,-249.37,0.00039547,2]
[311150669,1704934236613,-250.0,0.00039629,120]
[311150670,1704934236622,-500.0,0.00039726,4]
[311150671,1704934236632,-500.0,0.00039728,4]
[311150672,1704934236641,-500.0,0.00039728,4]
[311150673,1704934236651,-500.0,0.00039728,4]
[311150674,1704934236660,-500.0,0.00039728,4]
[311150675,1704934236669,-486.85688126,0.00039728,4]
[311150676,1704934236679,-223.3,0.00039728,4]
[311150677,1704934236688,-500.0,0.00039728,4]
[311150678,1704934236697,-455.18,0.00039728,4]
[311150679,1704934236707,-500.0,0.00039728,4]
[311150680,1704934236715,-500.0,0.00039728,4]
[311150681,1704934236725,-500.0,0.00039728,4]
[311150682,1704934236734,-282.82,0.00039728,4]
[311150683,1704934236743,-5274.35,0.00039728,4]
[311150684,1704934236752,-504.27920024,0.00039728,4]
[311150685,1704934236763,-500.0,0.00039728,4]
[311150686,1704934236772,-387.08,0.00039728,4]
[311150687,1704934236781,-500.0,0.00039729,4]
[311150688,1704934236792,-500.0,0.00039729,4]
[311150689,1704934236801,-500.0,0.00039729,4]
[311150690,1704934236811,-500.0,0.00039729,4]
[311150691,1704934236821,-500.0,0.00039729,4]
[311150692,1704934236830,-500.0,0.00039729,4]
[311150693,1704934236840,-458.44,0.00039729,4]
[311150694,1704934236850,-500.0,0.00039729,4]
[311150695,1704934236860,-500.0,0.00039729,4]
[311150696,1704934236869,-500.0,0.00039729,4]
[311150697,1704934236878,-175.91347743,0.00039729,4]
[311150698,1704934236888,-500.0,0.00039729,4]
[311150699,1704934236897,-500.0,0.00039729,4]
[311150700,1704934236907,-500.0,0.00039729,4]
[311150701,1704934236916,-500.0,0.00039729,4]
[311150702,1704934236926,-500.0,0.00039729,4]
[311150703,1704934236935,-261.29370095,0.00039729,4]
[311150704,1704934236945,-500.0,0.00039729,4]
[311150705,1704934236955,-500.0,0.00039729,4]
[311150706,1704934236964,-500.0,0.00039729,4]
[311150707,1704934236974,-500.0,0.00039729,4]
[311150708,1704934236983,-319.83242526,0.00039729,4]
[311150709,1704934236992,-500.0,0.00039729,4]
[311150710,1704934237002,-500.0,0.00039729,4]
[311150711,1704934237012,-500.0,0.00039729,4]
[311150712,1704934237021,-500.0,0.00039729,4]
[311150713,1704934237030,-588.0,0.00039729,4]
[311150714,1704934237042,-500.0,0.00039729,4]
[311150715,1704934237051,-500.0,0.00039729,4]
[311150716,1704934237060,-500.0,0.00039729,4]
[311150717,1704934237069,-20000.0,0.00039799,2]
[311150718,1704934237078,-152.50784961,0.00039839,7]
[311150719,1704934237087,-400.0,0.0003987,2]
[311150720,1704934237097,-3160.00594732,0.00039885,13]
[311150721,1704934237106,-150.99155862,0.0003989,6]
[311150722,1704934237116,-223.64175143,0.00039899,13]
[311150723,1704934237125,-299.99983494,0.000399,4]
[311150724,1704934237134,-161.78709095,0.000399,2]
[311150725,1704934237143,-2014.94,0.000399,2]
[311150726,1704934237153,-3000.0,0.000399,24]
[311150727,1704934237162,-200.0,0.000399,2]
[311150728,1704934237171,-307.82,0.000399,2]
[311150729,1704934237181,-1000.0,0.00039909,2]
[311150730,1704934237190,-3000.0,0.0003991,24]
[311150731,1704934237199,-5461.490317,0.0003992,24]
[311150732,1704934237208,-400.0,0.0003997,2]
[311150733,1704934237218,-478.72640826,0.0003998,3]
[311150734,1704934237227,-150.18,0.0003998,2]
[311150735,1704934237236,-2270.29999901,0.00039985,2]
[311150736,1704934237246,-1000.0,0.00039989,2]
[311150737,1704934237255,-666.0,0.00039989,2]
[311150738,1704934237265,-302399.085087,0.0003999,5]
[311150739,1704934237274,-2158.0,0.0003999,3]
[311150740,1704934237283,-150.18,0.0003999,2]
[311150741,1704934237296,-150.0,0.00039999,2]
[311150742,1704934237305,-1000.0,0.00039999,2]
[311150743,1704934237314,-1000.0,0.00039999,2]
[311150744,1704934237324,-1000.0,0.00039999,2]
[311150745,1704934237333,-2000.0,0.0004,7]
[311150746,1704934237342,-487367.65543971,0.0004,15]
[311150747,1704934237351,-161.1953387,0.0004,2]
[311150748,1704934237360,-805.66669457,0.0004,2]
[311150749,1704934237370,-34402.86278608,0.0004,4]
[311150750,1704934237379,-2367.44406789,0.0004,4]
[311150751,1704934237389,-500.24754082,0.0004,4]
[311150752,1704934237398,-577.93958807,0.00040002,4]
[311150753,1704934237407,-500.0,0.00040002,4]
[311150754,1704934237417,-500.0,0.00040002,4]
[311150755,1704934237426,-500.0,0.00040002,4]
[311150756,1704934237435,-500.0,0.00040002,4]
[311150757,1704934237445,-257.07,0.00040002,4]
[311150758,1704934237454,-500.0,0.00040002,4]
[311150759,1704934237464,-500.0,0.00040002,4]
[311150760,1704934237473,-3797.07775297,0.00040002,4]
[311150761,1704934237599,-288.35999134,0.00040002,4]
[311150762,1704934237612,-1188.91225569,0.00040002,4]
[311150763,1704934237622,-61.08774431,0.00040002,4]
[311150764,1704934237639,-438.91225569,0.00040002,4]
[311150765,1704934237648,-286.31,0.00040003,4]
[311150766,1704934237657,-500.0,0.00040003,4]
[311150767,1704934237666,-500.0,0.00040003,4]
[311150768,1704934237675,-500.0,0.00040003,4]
[311150769,1704934237684,-500.0,0.00040003,4]
[311150770,1704934237694,-500.0,0.00040003,4]
[311150771,1704934237703,-500.0,0.00040003,4]
[311150772,1704934237712,-500.0,0.00040003,4]
[311150773,1704934237721,-500.0,0.00040003,4]
[311150774,1704934237731,-500.0,0.00040003,4]
[311150775,1704934237740,-500.0,0.00040003,4]
[311150776,1704934237750,-429.70418826,0.00040003,4]
[311150777,1704934237760,-500.0,0.00040003,4]
[311150778,1704934237769,-477.64479483,0.00040003,4]
[311150779,1704934237779,-500.0,0.00040003,4]
[311150780,1704934237790,-500.0,0.00040003,4]
[311150781,1704934237799,-500.0,0.00040003,4]
[311150782,1704934237809,-271.4172172,0.00040003,4]
[311150783,1704934237818,-500.0,0.00040003,4]
[311150784,1704934237828,-500.0,0.00040003,4]
[311150785,1704934237837,-500.0,0.00040003,4]
[311150786,1704934237847,-420.15525539,0.00040003,4]
[311150787,1704934237856,-569.69159461,0.00040003,4]
[311150788,1704934237866,-500.0,0.00040003,4]
[311150789,1704934237875,-614.86,0.00040003,4]
[311150790,1704934237885,-500.0,0.00040003,4]
[311150791,1704934237895,-153.72803979,0.0004009,7]
[311150792,1704934237904,-150.0,0.00040175,2]
[311150793,1704934237914,-158.0,0.00040274,14]
[311150794,1704934237923,-175.0,0.00040274,14]
[311150795,1704934237935,-500.0,0.00040276,4]
[311150796,1704934237944,-500.0,0.00040276,4]
[311150797,1704934237953,-500.0,0.00040276,4]
[311150798,1704934237963,-500.0,0.00040276,4]
[311150799,1704934237972,-500.0,0.00040276,4]
[311150800,1704934237982,-340.15174342,0.00040276,4]
[311150801,1704934237992,-5274.35,0.00040276,4]
[311150802,1704934238001,-498.49,0.00040276,4]
[311150803,1704934238011,-500.0,0.00040277,4]
[311150804,1704934238020,-500.0,0.00040277,4]
[311150805,1704934238030,-374.62,0.00040277,4]
[311150806,1704934238040,-500.0,0.00040277,4]
[311150807,1704934238050,-293.59769015,0.00040277,4]
[311150808,1704934238059,-592.6004542,0.00040277,4]
[311150809,1704934238068,-190.55,0.00040277,4]
[311150810,1704934238077,-500.0,0.00040277,4]
[311150811,1704934238087,-500.0,0.00040277,4]
[311150812,1704934238096,-500.0,0.00040277,4]
[311150813,1704934238106,-469.33,0.00040277,4]
[311150814,1704934238115,-606.17967321,0.00040277,4]
[311150815,1704934238124,-500.0,0.00040277,4]
[311150816,1704934238133,-500.0,0.00040277,4]
[311150817,1704934238143,-500.0,0.00040277,4]
[311150818,1704934238153,-500.0,0.00040277,4]
[311150822,1704934238278,-500.0,0.00040277,4]
[311150823,1704934238294,-500.0,0.00040277,4]
[311150824,1704934238303,-349.1764709,0.00040277,4]
[311150825,1704934238312,-1813.99,0.00040294,5]
[311150826,1704934238320,-3160.0059473,0.00040295,14]
[311150828,1704934238329,-814.0,0.00040298,8]
[311150830,1704934238338,-171.97,0.0004031,2]
[311150832,1704934238347,-158.66539268,0.00040341,2]
[311150834,1704934238357,-150.0,0.00040352,2]
[311150836,1704934238366,-150.0,0.00040368,2]
[311150838,1704934238375,-500.0,0.0004038,10]
[311150840,1704934238385,-500.0,0.00040388,7]
[311150842,1704934238394,-947.24,0.00040388,7]
[311150844,1704934238403,-333.40111,0.00040398,8]
[311150846,1704934238412,-200.0,0.000404,13]
[311150848,1704934238422,-1000.0,0.000404,2]
[311150850,1704934238430,-152.81,0.00040455,2]
[311150852,1704934238439,-153.84,0.00040469,2]
[311150853,1704934238448,-1567.81631739,0.00040479,5]
[311150855,1704934238458,-183.72,0.00040497,15]
[311150857,1704934238468,-333.40111,0.00040498,8]
[311150859,1704934238477,-39799.57822643,0.000405,2]
[311150862,1704934238490,-8211.92463833,0.000405,2]
[311150864,1704934238499,-1000.0,0.000405,2]
[311150866,1704934238509,-180.0,0.00040527,2]
[311150867,1704934238519,-500.0,0.0004055,4]
[311150868,1704934238529,-500.0,0.0004055,4]
[311150870,1704934238540,-500.0,0.0004055,4]
[311150871,1704934238549,-500.0,0.0004055,4]
[311150873,1704934238559,-500.0,0.0004055,4]
[311150874,1704934238568,-5274.35,0.0004055,4]
[311150875,1704934238577,-500.0,0.00040551,4]
[311150876,1704934238586,-500.0,0.00040551,4]
[311150877,1704934238596,-500.0,0.00040551,4]
[311150878,1704934238604,-500.0,0.00040551,4]
[311150879,1704934238614,-500.0,0.00040551,4]
[311150880,1704934238623,-500.0,0.00040551,4]
[311150881,1704934238632,-500.0,0.00040551,4]
[311150882,1704934238641,-500.0,0.00040551,4]
[311150883,1704934238651,-500.0,0.00040551,4]
[311150884,1704934238661,-234.22645542,0.00040551,4]
[311150885,1704934238671,-500.0,0.00040551,4]
[311150886,1704934238680,-333.40111,0.00040598,8]
[311150887,1704934238689,-1000.0,0.00040599,2]
[311150888,1704934238698,-500.0,0.00040661,7]
[311150889,1704934238707,-155.374608,0.00040667,2]
[311150890,1704934238717,-5000.0,0.00040676,5]
[311150891,1704934238726,-6306.44284258,0.00040684,2]
[311150892,1704934238738,-531.60879351,0.00040684,2]
[311150893,1704934238746,-234.47050142,0.00040698,8]
[311150894,1704934238758,-98.93060858,0.00040698,8]
[311150895,1704934238769,-1239.55930179,0.000407,81]
[311150896,1704934238781,-470.7323318,0.000407,81]
[311150897,1704934238794,-593.86932911,0.000407,81]
[311150898,1704934238805,-1949.8390373,0.000407,81]
[311150899,1704934238814,-565.29524494,0.00040706,14]
[311150901,1704934238826,-766.30036598,0.00040706,14]
[311150903,1704934238837,-1205.02646746,0.00040706,14]
[311150918,1704934238958,-150.686,0.00038244,2]
[311150920,1704934238967,-307.51738658,0.00039355,14]
[311150922,1704934238976,-623.38386892,0.00040706,14]
[311150924,1704934238986,-1000.0,0.00040733,2]
[311150926,1704934238995,-166.20234,0.0004074,5]
[311150928,1704934239003,-333.40111,0.00040798,8]
[311150930,1704934239012,-154.65,0.000408,4]
[311150932,1704934239022,-154.65,0.000408,4]
[311150934,1704934239031,-154.65,0.000408,4]
[311150936,1704934239042,-154.65,0.000408,4]
[311150938,1704934239051,-500.0,0.00040824,4]
[311150940,1704934239060,-500.0,0.00040824,4]
[311150942,1704934239069,-500.0,0.00040824,4]
[311150944,1704934239078,-500.0,0.00040824,4]
[311150946,1704934239087,-500.0,0.00040824,4]
[311150948,1704934239096,-5274.35,0.00040824,4]
[311150950,1704934239105,-500.0,0.00040825,4]
[311150952,1704934239115,-476.14,0.00040825,4]
[311150955,1704934239128,-500.0,0.00040825,4]
[311150956,1704934239137,-500.0,0.00040825,4]
[311150959,1704934239146,-500.0,0.00040825,4]
[311150961,1704934239155,-500.0,0.00040825,4]
[311150963,1704934239164,-273.23,0.00040825,4]
[311150965,1704934239174,-500.0,0.00040825,4]
[311150967,1704934239183,-500.0,0.00040825,4]
[311150969,1704934239192,-500.0,0.00040825,4]
[311150971,1704934239201,-333.40111,0.00040898,8]
[311150973,1704934239211,-500.0,0.00040935,7]
[311150975,1704934239220,-298.59704734,0.00040985,2]
[311150977,1704934239229,-291.56786829,0.00040985,2]
[311150979,1704934239238,-8397.0,0.0004099,3]
[311150981,1704934239248,-333.40111,0.00040998,8]
[311150983,1704934239257,-150.0,0.00040999,2]
[311150985,1704934239266,-800.0,0.00041,2]
[311150987,1704934239276,-600.0,0.00041,42]
[311150989,1704934239285,-712.64879625,0.00041,2]
[311150991,1704934239296,-3666.0,0.00041014,4]
[311150993,1704934239305,-500.0,0.00041066,4]
[311150995,1704934239314,-500.0,0.00041066,4]
[311150997,1704934239323,-500.0,0.00041066,4]
[311150999,1704934239333,-500.0,0.00041066,4]
[311151001,1704934239341,-500.0,0.00041066,4]
[311151003,1704934239350,-400.0,0.0004107,3]
[311151005,1704934239360,-155.38981305,0.00041071,2]
[311151007,1704934239369,-155.38981305,0.00041074,2]
[311151009,1704934239379,-176.46,0.0004108,2]
[311151011,1704934239389,-259.18971896,0.00041084,2]